bitfinex/quotes_ETHUSD_20260225
["timestamp","ask_amount","ask_price","bid_price","bid_amount"]
[1771982335805,12.70424573,1911.8,1910.0,5.87990828]
[1771982336015,5.20854872,1911.5,1910.0,5.87990828]
[1771982336219,5.20854872,1911.5,1909.5,5.20854872]
[1771982336220,5.20854872,1911.2,1909.5,5.87990828]
[1771982336403,5.20854872,1911.5,1909.8,29.82878328]
[1771982336592,12.70424573,1911.8,1909.9,20.50007328]
[1771982336915,12.70424573,1911.8,1909.4,0.08192]
[1771982336916,7.49569701,1911.8,1910.1,11.088457]
[1771982337080,12.70424573,1911.8,1910.2,1.30876348]
[1771982337284,7.49569701,1911.8,1910.2,1.30876348]
[1771982337513,5.20854872,1911.7,1910.2,1.30876348]
[1771982337678,5.20854872,1911.4,1909.8,1.30903759]
[1771982338722,5.20854872,1911.1,1909.8,1.30903759]
[1771982339085,5.20854872,1911.1,1909.7,5.23618581]
[1771982339086,0.002,1910.3,1909.7,5.23618581]
[1771982339542,5.20854872,1911.1,1909.7,5.23618581]
[1771982339827,0.002,1910.4,1909.7,5.23618581]
[1771982341048,0.002,1910.4,1909.9,2.57057]
[1771982341323,1.30780498,1911.6,1910.1,21.276944]
[1771982341607,1.30780498,1911.6,1910.1,5.015689]
[1771982341848,5.21154872,1912.0,1910.0,7.1888088]
[1771982341849,5.23321712,1912.0,1910.2,11.088457]
[1771982341986,5.23046127,1911.9,1910.5,5.87990828]
[1771982342179,5.20854872,1911.8,1910.2,3.73]
[1771982342415,5.23046127,1911.9,1910.4,23.958385]
[1771982342585,5.23046127,1911.9,1910.4,5.002]
[1771982342789,5.23046127,1911.9,1910.3,5.87990828]
[1771982343028,11.39657757,1911.8,1910.1,2.69846674]
[1771982343323,5.20854872,1911.5,1910.2,1.30876348]
[1771982344183,11.39657757,1911.5,1910.2,1.30876348]
[1771982344417,6.18802885,1911.5,1910.2,1.30876348]
[1771982344621,1.30780498,1911.6,1910.2,1.30876348]
[1771982344940,1.30780498,1911.6,1910.2,7.18867176]
[1771982345141,1.30759976,1911.9,1910.3,5.87990828]
[1771982345304,0.003,1912.0,1910.9,30.0]
[1771982345620,1.3069162,1912.9,1911.2,35.87990828]
[1771982345784,1.3069162,1912.9,1910.8,1.49520876]
[1771982345785,5.20854872,1912.6,1910.9,19.540958]
[1771982345985,5.20854872,1912.6,1910.9,5.095]
[1771982346299,1.17139,1912.2,1910.8,1.30835252]
[1771982346704,1.17139,1912.3,1910.8,7.1882608]
[1771982347009,1.17139,1911.9,1910.8,1.30835252]
[1771982347316,1.17139,1911.5,1910.4,1.30857689]
[1771982347482,1.17139,1911.5,1910.3,1.30864863]
[1771982348298,1.30780498,1911.6,1910.3,1.30864863]
[1771982348502,1.30780498,1911.6,1910.4,11.015575]
[1771982348894,1.30753138,1912.0,1910.4,11.015575]
[1771982349092,1.30753138,1912.0,1910.3,1.30864863]
[1771982349093,1.30753138,1912.0,1910.7,23.990286]
[1771982349303,5.23039145,1912.1,1910.8,1.30835252]
[1771982350121,5.20854872,1912.6,1910.8,1.30835252]
[1771982350122,1.30718954,1912.5,1910.8,1.30835252]
[1771982350289,5.20854872,1912.3,1910.8,1.30835252]
[1771982350620,11.39657757,1912.3,1910.8,1.30835252]
[1771982350804,11.39657757,1912.3,1910.6,5.87990828]
[1771982351006,5.20854872,1912.0,1910.7,1.30837413]
[1771982351207,5.20854872,1912.0,1910.3,1.30869496]
[1771982351408,5.20854872,1912.0,1910.2,5.23482717]
[1771982351409,7.49562861,1911.9,1911.0,0.001]
[1771982351609,5.20854872,1911.7,1910.2,5.23482717]
[1771982352023,5.20854872,1911.7,1910.9,0.001]
[1771982352536,5.20854872,1911.7,1910.1,1.30879228]
[1771982352537,5.20854872,1911.7,1910.7,0.001]
[1771982352690,10.05023808,1911.9,1910.7,0.001]
[1771982352888,5.20854872,1911.7,1910.7,0.001]
[1771982353535,1.30780498,1911.6,1910.7,0.001]
[1771982353913,5.20854872,1911.4,1910.7,0.001]
[1771982354517,11.39657757,1911.4,1910.7,0.001]
[1771982354718,11.39657757,1911.1,1909.8,1.572]
[1771982355039,11.39657757,1911.1,1909.3,0.08192]
[1771982355040,0.003,1909.8,1909.4,1.30931182]
[1771982355211,5.20854872,1910.8,1909.4,1.30931182]
[1771982355415,1.30842099,1910.7,1909.1,7.18942585]
[1771982356576,5.23230833,1911.4,1909.7,5.87990828]
[1771982356847,1.30766816,1911.8,1910.1,2.2899]
[1771982357045,1.30766816,1911.8,1910.1,16.357511]
[1771982357276,1.30766816,1911.8,1910.3,11.088457]
[1771982357551,10.43814012,1912.2,1910.5,1.30855796]
[1771982357552,7.49542347,1912.2,1910.5,1.30855796]
[1771982357846,12.70397219,1912.2,1910.6,3.067]
[1771982358018,5.20854872,1911.9,1910.5,1.30855796]
[1771982358516,5.20854872,1911.6,1910.4,1.30858544]
[1771982358740,5.20854872,1911.6,1910.0,1.30890052]
[1771982358938,11.39657757,1911.6,1910.0,1.30890052]
[1771982359327,11.39657757,1911.6,1909.9,1.30893561]
[1771982359526,1.30787339,1911.5,1909.8,5.23603135]
[1771982359732,7.49590224,1911.5,1909.8,5.23603135]
[1771982359929,5.20854872,1911.3,1909.6,3.932227]
[1771982360229,12.70445096,1911.5,1909.7,5.87990828]
[1771982360431,12.70445096,1911.5,1909.8,35.87990828]
[1771982360745,5.20854872,1912.1,1910.5,5.018564]
[1771982360914,5.22931606,1912.3,1910.2,4.474]
[1771982360915,5.20854872,1911.8,1910.2,4.474]
[1771982361138,5.20854872,1911.8,1910.2,2.7589]
[1771982361341,6.18802885,1912.0,1910.4,2.18327]
[1771982361544,1.30759976,1911.9,1910.5,1.30855796]
[1771982361742,5.22905427,1912.4,1910.7,5.87990828]
[1771982361993,5.20854872,1912.1,1910.5,1.30855796]
[1771982362144,5.20854872,1911.8,1910.0,1.30890052]
[1771982362345,11.39657757,1911.8,1910.0,1.30890052]
[1771982362746,5.20854872,1911.2,1909.6,1.30917469]
[1771982362946,6.18802885,1911.5,1909.4,1.3092486]
[1771982362947,5.20854872,1910.9,1909.4,1.3092486]
[1771982363152,5.20854872,1910.9,1909.3,1.3093804]
[1771982363472,1.30835252,1910.8,1909.1,1.30951757]
[1771982363677,5.20854872,1910.6,1909.1,1.30951757]
[1771982363863,6.18802885,1910.3,1908.8,2.8816933]
[1771982364242,5.20854872,1910.2,1908.8,2.8816933]
[1771982365077,5.20854872,1909.9,1908.8,1.572]
[1771982365255,6.18802885,1910.1,1908.8,2.88171712]
[1771982365455,5.20854872,1909.9,1908.4,1.3099979]
[1771982365772,7.3610535,1910.0,1909.6,0.001]
[1771982366072,7.3610535,1910.0,1908.4,1.3099979]
[1771982366073,5.20854872,1909.9,1908.4,1.3099979]
[1771982366654,5.20854872,1909.6,1908.2,1.31007795]
[1771982366860,5.20854872,1909.3,1908.1,1.31016367]
[1771982367381,5.20854872,1909.8,1908.1,1.31016367]
[1771982367548,1.30910614,1909.7,1908.0,11.31076016]
[1771982367751,1.30910614,1909.7,1908.2,28.855454]
[1771982367949,1.30910614,1909.7,1908.2,3.72945]
[1771982368180,1.30910614,1909.7,1908.1,6.06994469]
[1771982368477,5.20854872,1909.5,1908.0,5.24081547]
[1771982368698,7.36125912,1909.7,1908.0,11.31076016]
[1771982370589,7.36125912,1909.7,1908.1,8.07738]
[1771982370792,7.36125912,1909.7,1908.1,5.01038]
[1771982370991,7.36125912,1909.7,1908.0,11.31076016]
[1771982371403,7.36125912,1909.7,1908.1,16.428533]
[1771982371598,7.36125912,1909.7,1908.2,1.3101352]
[1771982372504,7.36125912,1909.7,1908.1,1.31015839]
[1771982373008,5.20854872,1909.0,1907.9,1.31128553]
[1771982373654,5.20854872,1909.0,1907.9,0.001]
[1771982373655,1.30986063,1908.6,1907.9,0.001]
[1771982373783,1.30965477,1908.9,1907.9,0.001]
[1771982374486,5.20854872,1908.7,1907.9,0.001]
[1771982374819,11.2607017,1908.7,1907.8,0.001]
[1771982375713,1.30986063,1908.6,1907.8,0.001]
[1771982376433,7.36201361,1908.6,1907.8,0.001]
[1771982376958,1.30986063,1908.6,1907.8,0.001]
[1771982377325,1.30965477,1908.9,1907.8,0.001]
[1771982377658,1.30965477,1908.9,1907.9,0.001]
[1771982377857,1.30944898,1909.2,1907.9,0.001]
[1771982378257,1.30944898,1909.2,1907.9,6.07094469]
[1771982378461,1.30927567,1909.5,1908.1,6.06994469]
[1771982378669,1.30927567,1909.5,1908.2,19.798081]
[1771982378866,1.30927567,1909.5,1908.1,6.06994469]
[1771982379225,5.20854872,1909.3,1907.9,0.001]
[1771982379455,1.30927567,1909.5,1907.9,0.001]
[1771982379658,1.30927567,1909.5,1907.9,6.07094469]
[1771982379833,5.20854872,1909.3,1908.0,1.31027253]
[1771982380750,7.36142865,1909.5,1908.0,7.38021722]
[1771982381342,5.20854872,1909.3,1907.9,1.311301]
[1771982381539,5.20854872,1909.0,1907.9,1.311301]
[1771982381968,1.30965477,1908.9,1907.9,0.001]
[1771982383067,1.30924325,1909.5,1907.9,6.07094469]
[1771982383297,5.20854872,1909.0,1907.9,0.001]
[1771982383462,1.30924325,1909.5,1907.9,0.001]
[1771982383463,5.20854872,1909.1,1907.9,0.001]
[1771982383658,6.05215298,1909.3,1907.9,0.001]
[1771982384091,1.30917469,1909.6,1908.1,6.06994469]
[1771982384400,10.44388199,1910.1,1908.6,6.06994469]
[1771982384681,16.49603497,1910.1,1908.6,6.06994469]
[1771982385058,16.49603497,1910.1,1908.3,2.64682777]
[1771982385059,5.20854872,1909.8,1908.3,2.64682777]
[1771982385257,5.20854872,1909.8,1908.3,8.71677246]
[1771982385456,5.20854872,1909.8,1908.4,6.06994469]
[1771982385859,16.49603497,1910.1,1908.6,6.06994469]
[1771982386163,11.28748625,1910.1,1908.7,1.309792]
[1771982386366,11.28748625,1910.1,1908.7,7.37973669]
[1771982387384,1.30883199,1910.1,1908.8,34.21177669]
[1771982387597,1.30883199,1910.1,1908.8,6.06994469]
[1771982387769,1.30869496,1910.3,1908.8,6.06994469]
[1771982387972,5.23434929,1910.5,1909.2,1.30944898]
[1771982388871,5.49001204,1910.9,1909.4,6.06994469]
[1771982389273,0.002,1910.0,1909.4,6.06994469]
[1771982390207,0.002,1910.0,1909.5,1.30924325]
[1771982390692,0.002,1910.1,1909.5,1.30924325]
[1771982392596,0.002,1910.1,1909.3,6.06994469]
[1771982392801,0.002,1910.1,1909.5,6.06994469]
[1771982393098,5.23341009,1911.0,1909.5,6.06994469]
[1771982393099,1.30814714,1911.1,1909.5,11.55995673]
[1771982393405,1.30814714,1911.1,1909.9,6.06994469]
[1771982393564,7.36030012,1911.1,1909.5,6.06994469]
[1771982394215,11.54216502,1910.9,1909.5,6.06994469]
[1771982394370,7.36030012,1911.1,1909.6,1.30917469]
[1771982394571,7.36030012,1911.1,1909.6,7.37911938]
[1771982395397,7.36030012,1911.1,1909.6,1.30917469]
[1771982395727,1.30814714,1911.1,1909.8,6.38683421]
[1771982396025,5.23258856,1911.4,1910.0,6.38683421]
[1771982396026,1.30794182,1911.4,1910.0,6.38683421]
[1771982396391,1.30794182,1911.4,1910.1,7.6956662]
[1771982398009,1.30785557,1911.6,1910.3,6.38683421]
[1771982398315,0.002,1911.7,1910.6,1.30848947]
[1771982398920,0.002,1912.0,1910.6,1.30848947]
[1771982398921,0.002,1912.0,1910.9,16.15517421]
[1771982399121,1.30953784,1912.0,1911.0,6.38683421]
[1771982399429,0.002,1912.0,1911.0,6.38683421]
[1771982400026,1.30953416,1912.0,1911.0,6.38683421]
[1771982400230,0.002,1912.5,1911.1,30.0]
[1771982400405,0.002,1912.5,1911.5,7.6947076]
[1771982400610,0.002,1912.5,1911.7,6.38683421]
[1771982400935,1.03754525,1913.5,1912.2,6.38683421]
[1771982401251,6.30250257,1913.4,1911.8,6.38683421]
[1771982401467,5.2260256,1913.8,1911.8,6.38683421]
[1771982401468,5.22531087,1913.8,1911.8,6.38683421]
[1771982401728,2.69717385,1914.2,1912.5,6.38683421]
[1771982401729,4.00325257,1914.2,1912.5,6.38683421]
[1771982401927,6.30250257,1913.7,1912.0,4.940402]
[1771982402101,6.30250257,1913.7,1912.0,6.38683421]
[1771982402295,6.30250257,1913.7,1911.6,2.79412547]
[1771982402296,2.49322057,1913.8,1912.4,6.38683421]
[1771982402558,1.30614826,1914.1,1912.7,6.38683421]
[1771982402731,1.30589218,1914.4,1912.9,9.70928421]
[1771982403051,7.60839475,1914.4,1912.9,6.38683421]
[1771982403252,10.30536399,1914.8,1913.1,6.38683421]
[1771982403557,5.22296783,1914.7,1913.1,6.38683421]
[1771982404129,6.30250257,1914.5,1912.6,6.38683421]
[1771982404635,1.30589218,1914.4,1912.9,6.38683421]
[1771982404835,7.60839475,1914.4,1912.9,6.38683421]
[1771982405048,7.60839475,1914.4,1912.7,6.38683421]
[1771982405049,13.98675207,1914.3,1912.7,6.38683421]
[1771982405218,6.30250257,1914.2,1912.5,1.3071479]
[1771982405635,6.30250257,1914.2,1912.5,7.69398211]
[1771982406030,7.6842495,1913.9,1912.4,1.30723066]
[1771982406224,6.30250257,1913.4,1911.7,5.23077392]
[1771982406421,6.30250257,1913.0,1911.6,2.71220547]
[1771982406621,6.30250257,1913.0,1911.0,7.6950498]
[1771982406937,6.30250257,1913.0,1911.2,6.38683421]
[1771982407446,6.30250257,1913.0,1911.5,6.38683421]
[1771982407667,6.30250257,1913.0,1911.0,7.6950498]
[1771982407835,6.30250257,1913.0,1911.3,2.052]
[1771982408150,6.30250257,1913.0,1911.2,6.38683421]
[1771982408754,6.30250257,1913.0,1911.3,1.30801025]
[1771982408755,6.30250257,1912.8,1911.3,1.30801025]
[1771982408982,6.30250257,1912.8,1910.8,3.142]
[1771982408983,6.30250257,1912.6,1910.8,7.69518673]
[1771982409457,6.30250257,1912.6,1911.1,6.38683421]
[1771982409672,1.3069162,1912.9,1911.2,30.0]
[1771982409822,4.06152001,1913.7,1911.9,6.38683421]
[1771982409823,1.30664297,1913.3,1911.9,6.38683421]
[1771982410039,6.30250257,1914.3,1912.1,6.38683421]
[1771982410242,6.30250257,1914.3,1912.4,18.82374121]
[1771982410475,6.30250257,1914.3,1912.5,19.380143]
[1771982410654,1.30602862,1914.2,1912.6,1.30712119]
[1771982410964,6.30250257,1914.0,1912.5,1.30715247]
[1771982411638,1.30602862,1914.2,1912.2,5.22951717]
[1771982411639,7.6842495,1913.7,1912.2,5.22951717]
[1771982411838,2.49322057,1913.9,1912.4,6.38683421]
[1771982412239,6.30250257,1913.6,1912.0,1.30753138]
[1771982412447,6.30250257,1913.6,1912.0,6.38683421]
[1771982412770,1.30677957,1913.1,1911.7,1.30773656]
[1771982412970,1.30677957,1913.1,1911.6,10.83658567]
[1771982413168,1.30677957,1913.1,1911.8,6.38683421]
[1771982413338,1.30677957,1913.1,1911.6,2.87875146]
[1771982413941,7.60928214,1913.1,1911.6,1.571]
[1771982414169,13.98675207,1912.9,1911.6,1.571]
[1771982414391,6.30250257,1912.4,1910.8,6.38683421]
[1771982414667,6.30250257,1912.4,1910.7,7.69525299]
[1771982414842,1.30732625,1912.3,1910.7,7.69525299]
[1771982415238,15.29407832,1912.3,1910.7,7.69525299]
[1771982415443,6.30250257,1912.2,1910.7,1.30841878]
[1771982416760,1.30746299,1912.1,1910.6,9.26528791]
[1771982417275,1.30746299,1912.1,1910.6,9.2653126]
[1771982417643,6.30250257,1911.8,1911.4,0.001]
[1771982417944,6.30250257,1911.8,1910.3,5.2347469]
[1771982418169,6.30250257,1911.8,1910.2,5.59092767]
[1771982418389,6.30250257,1911.8,1910.2,1.57]
[1771982418588,6.30250257,1911.8,1910.0,1.30885154]
[1771982418878,6.30250257,1911.4,1909.7,7.69590364]
[1771982419078,1.30773656,1911.7,1909.9,6.38683421]
[1771982419254,7.6842495,1911.4,1909.9,6.38683421]
[1771982419453,6.30250257,1911.3,1909.7,1.30908623]
[1771982419656,6.30250257,1911.3,1909.7,7.69592044]
[1771982419962,6.30250257,1911.3,1909.6,5.23742456]
[1771982419963,6.30250257,1911.3,1909.6,1.31016204]
[1771982420359,1.30773656,1911.7,1909.6,7.69699625]
[1771982420360,7.61023913,1911.7,1909.6,7.69699625]
[1771982420677,7.61023913,1911.7,1910.0,6.38683421]
[1771982420866,7.61023913,1911.7,1910.1,7.6956662]
[1771982421296,7.61023913,1911.7,1910.0,1.30884721]
[1771982421455,13.98675207,1911.4,1909.7,5.236399]
[1771982421778,1.30773656,1911.7,1909.8,6.38683421]
[1771982422655,1.30773656,1911.7,1910.1,6.38683421]
[1771982422846,5.23094627,1911.8,1910.2,7.69559769]
[1771982423376,6.30250257,1911.7,1909.8,6.38683421]
[1771982423579,5.23094627,1911.8,1909.9,7.69580326]
[1771982423792,5.23094627,1911.8,1910.1,6.38683421]
[1771982423946,5.23094627,1911.8,1910.3,6.38683421]
[1771982424146,5.23094627,1911.8,1910.6,30.0]
[1771982424147,6.30250257,1911.8,1910.6,30.0]
[1771982424355,6.30250257,1911.4,1909.6,0.001]
[1771982424577,6.30250257,1911.0,1909.6,1.31015315]
[1771982424874,1.30828405,1910.9,1909.6,1.31015315]
[1771982425119,5.23067266,1912.0,1910.4,6.38683421]
[1771982425397,5.23067266,1912.0,1910.6,6.42415755]
[1771982425606,11.66667944,1912.0,1910.6,6.42415755]
[1771982425766,11.66667944,1912.0,1910.3,2.71220547]
[1771982425967,6.43600678,1911.7,1910.1,6.32526441]
[1771982426578,6.43600678,1911.7,1909.7,6.32526441]
[1771982427679,6.43600678,1911.5,1909.8,1.30903759]
[1771982427994,6.43600678,1911.5,1910.0,6.32526441]
[1771982429368,1.30780498,1911.6,1910.0,6.32526441]
[1771982429611,1.30780498,1911.6,1910.2,6.32526441]
[1771982429903,5.23121992,1911.8,1910.3,7.63395937]
[1771982430312,0.002,1911.6,1910.3,7.63395937]
[1771982433492,6.43800678,1911.6,1910.1,0.001]
[1771982433693,6.43600678,1911.2,1910.1,0.001]
[1771982434007,6.43600678,1910.6,1909.6,0.001]
[1771982436328,1.30855796,1910.5,1909.6,0.001]
[1771982436905,1.30855796,1910.5,1909.6,6.32626441]
[1771982438330,1.30821559,1911.0,1909.7,1.30910614]
[1771982438628,5.23178333,1911.4,1909.7,7.63437055]
[1771982438844,5.23162446,1911.5,1909.9,7.6842495]
[1771982439004,5.23162446,1911.5,1910.2,6.32526441]
[1771982439722,1.30787339,1911.5,1910.4,6.32526441]
[1771982440431,0.002,1911.6,1910.5,7.63382237]
[1771982445440,0.002,1911.9,1911.1,6.32526441]
[1771982445646,0.002,1911.9,1910.7,6.32526441]
[1771982446152,0.002,1911.5,1910.7,6.32526441]
[1771982446506,0.002,1911.5,1910.3,6.32526441]
[1771982447105,0.002,1911.5,1910.4,7.63389087]
[1771982448540,0.002,1911.5,1910.3,1.30866784]
[1771982448840,0.002,1911.5,1910.3,7.63393225]
[1771982454311,6.43800678,1911.5,1910.3,1.30866784]
[1771982455139,0.002,1911.5,1910.4,6.32526441]
[1771982455348,0.002,1911.9,1910.9,6.48803097]
[1771982455652,0.002,1911.9,1911.1,6.48803097]
[1771982456160,1.30960885,1911.9,1910.7,6.48803097]
[1771982456310,1.30960885,1911.9,1910.9,6.48803097]
[1771982457027,1.30960885,1911.9,1910.6,6.48803097]
[1771982457436,0.002,1911.9,1910.7,1.30842099]
[1771982457747,0.002,1911.9,1910.7,7.79645196]
[1771982458251,0.002,1911.9,1910.9,6.48803097]
[1771982458549,0.002,1911.9,1911.1,6.48803097]
[1771982459540,5.227569,1913.0,1911.6,6.48803097]
[1771982459750,3.70904575,1913.3,1911.9,6.48803097]
[1771982459751,1.30666161,1913.3,1911.9,6.48803097]
[1771982460122,7.35372516,1913.3,1911.9,6.48803097]
[1771982460442,1.30666161,1913.3,1911.9,6.48803097]
[1771982460648,0.002,1913.4,1912.1,6.48803097]
[1771982460850,0.002,1913.4,1912.5,6.48803097]
[1771982461015,0.003,1913.6,1912.7,6.48803097]
[1771982461546,0.003,1913.6,1912.8,7.79501549]
[1771982461921,1.30561938,1914.8,1913.3,6.48803097]
[1771982462122,6.04706355,1915.1,1913.5,6.48803097]
[1771982462321,3.70904575,1915.5,1914.0,6.48803097]
[1771982462322,1.30517985,1915.5,1914.0,6.48803097]
[1771982462527,1.30517985,1915.5,1913.9,30.0]
[1771982462528,7.3522434,1915.5,1913.8,24.65265297]
[1771982462736,11.57137324,1916.0,1913.2,5.67002755]
[1771982462737,5.21975153,1915.9,1914.3,6.48803097]
[1771982463158,11.53023486,1915.7,1914.1,2.61986734]
[1771982463464,11.53023486,1914.8,1913.3,6.48803097]
[1771982463762,11.53023486,1914.8,1912.7,8.3699381]
[1771982463763,5.48317131,1914.2,1912.7,3.142]
[1771982463963,1.30575577,1914.6,1912.9,6.48803097]
[1771982464180,5.22255395,1914.8,1913.2,6.48803097]
[1771982464479,11.2696175,1914.8,1913.2,6.48803097]
[1771982464647,5.22255395,1914.8,1913.3,8.54948097]
[1771982464850,5.22174452,1915.1,1913.6,5.945482]
[1771982465138,5.22174452,1915.1,1913.6,3.74469]
[1771982465329,5.22174452,1915.1,1913.6,9.170423]
[1771982465527,5.22174452,1915.1,1913.6,5.22547943]
[1771982466150,5.48317131,1914.9,1913.6,1.30643812]
[1771982466344,5.22174452,1915.1,1913.6,1.30643812]
[1771982466955,11.26880807,1915.1,1913.6,1.30643812]
[1771982467152,1.30541486,1915.4,1913.6,1.30643812]
[1771982467153,5.22095328,1915.4,1913.8,6.48803097]
[1771982467454,1.30476291,1916.1,1914.4,6.48803097]
[1771982467655,0.1482038,1916.8,1914.4,6.48803097]
[1771982467656,0.1482038,1916.8,1915.4,6.48803097]
[1771982467857,0.1482038,1916.8,1915.7,4.149365]
[1771982468058,1.45248108,1916.8,1915.3,3.131048]
[1771982468351,0.1482038,1916.8,1915.6,6.48723097]
[1771982468553,0.1482038,1916.8,1915.9,6.48803097]
[1771982468754,7.77355563,1918.0,1916.3,6.48803097]
[1771982468755,3.8630509,1918.0,1916.3,6.48803097]
[1771982468955,11.53023486,1917.9,1916.3,2.16445]
[1771982469134,5.48317131,1917.6,1915.8,12.05312228]
[1771982469335,6.04706355,1917.8,1916.0,6.48803097]
[1771982469537,3.8630509,1918.0,1916.4,1.30452932]
[1771982469963,5.48317131,1918.5,1916.8,6.48803097]
[1771982470372,1.30303346,1918.6,1917.0,5.48317131]
[1771982470674,11.25698852,1919.7,1917.9,5.48317131]
[1771982470970,11.25698852,1919.7,1917.0,11.97120228]
[1771982470971,11.53023486,1918.8,1917.0,11.97120228]
[1771982471169,5.48317131,1918.5,1916.6,5.48317131]
[1771982471381,11.53023486,1918.8,1916.5,9.62603097]
[1771982471382,5.48317131,1918.4,1916.5,15.10920228]
[1771982471581,5.48317131,1918.4,1916.0,21.66763123]
[1771982471582,1.30337312,1918.1,1916.4,5.44766175]
[1771982471790,1.30337312,1918.1,1916.6,5.44766175]
[1771982471944,1.30310138,1918.5,1917.2,5.44766175]
[1771982472147,1.30310138,1918.5,1916.4,16.11316853]
[1771982472148,5.44766175,1918.0,1916.6,5.44766175]
[1771982472669,10.8953235,1918.2,1916.4,5.44766175]
[1771982472670,5.44766175,1917.8,1916.4,5.44766175]
[1771982472842,5.44766175,1918.2,1916.8,5.44766175]
[1771982473041,7.35016493,1918.5,1916.7,5.44766175]
[1771982473042,5.44766175,1918.0,1916.7,5.44766175]
[1771982473242,1.30310138,1918.5,1917.1,5.44766175]
[1771982473461,1.30310138,1918.5,1917.5,5.44766175]
[1771982473664,6.7505744,1918.8,1917.5,1.30375382]
[1771982473864,6.7505744,1918.8,1917.4,1.30379984]
[1771982474075,5.44766175,1918.0,1916.6,6.75205494]
[1771982474274,0.002,1918.4,1917.0,5.44766175]
[1771982474479,0.08192,1919.4,1918.3,6.48803097]
[1771982474653,5.44766175,1920.6,1919.1,5.44766175]
[1771982474855,5.44766175,1920.6,1919.0,6.48803097]
[1771982474856,5.44766175,1920.8,1919.3,5.44766175]
[1771982475056,5.44766175,1920.8,1919.5,5.44766175]
[1771982475242,2.2905349,1921.3,1920.1,5.44766175]
[1771982475585,0.9893018,1921.3,1920.2,1.30194771]
[1771982475793,0.75342286,1921.3,1920.3,5.44766175]
[1771982476083,0.4355018,1921.3,1920.2,1.30194771]
[1771982476293,1.73672226,1921.3,1920.5,8.632078]
[1771982476441,1.73672226,1921.3,1920.3,15.519215]
[1771982476648,1.73672226,1921.3,1920.3,15.28953497]
[1771982476846,1.73672226,1921.3,1920.2,2.61986734]
[1771982477104,1.73672226,1921.3,1920.1,5.44766175]
[1771982477247,1.73672226,1921.3,1920.7,5.44766175]
[1771982477248,1.73670762,1921.3,1920.7,5.44766175]
[1771982477449,1.73670762,1921.3,1920.3,6.48803097]
[1771982477450,0.4355018,1921.3,1920.8,5.44686175]
[1771982477674,5.44766175,1921.0,1919.4,6.48803097]
[1771982478027,1.73590487,1921.3,1919.8,6.48803097]
[1771982478171,0.4347018,1921.3,1920.0,6.48803097]
[1771982478372,0.4347018,1921.3,1919.3,7.24327028]
[1771982478373,0.4347018,1921.3,1920.4,27.028921]
[1771982478669,5.20210164,1922.4,1920.7,19.46210897]
[1771982478980,5.44766175,1922.3,1920.9,6.853806]
[1771982479180,5.44766175,1921.4,1920.0,5.44766175]
[1771982479509,6.04706355,1922.3,1920.6,5.44766175]
[1771982479703,7.34725077,1922.9,1921.0,5.44766175]
[1771982479902,6.04706355,1922.7,1920.7,2.380296]
[1771982480112,6.04706355,1922.5,1920.1,5.453408]
[1771982480311,6.04706355,1922.3,1920.1,4.918501]
[1771982480481,11.24808294,1922.8,1920.6,6.48803097]
[1771982480681,11.24808294,1922.8,1920.7,15.50247572]
[1771982480879,5.44766175,1922.5,1921.1,5.44766175]
[1771982481197,5.20101939,1922.8,1920.7,6.48803097]
[1771982481198,5.44766175,1922.0,1920.7,6.48803097]
[1771982481440,11.24808294,1922.8,1920.7,6.48803097]
[1771982481620,6.04706355,1922.3,1920.2,9.10789831]
[1771982481929,1.2999168,1923.2,1921.4,17.916535]
[1771982482215,7.34698035,1923.2,1920.9,11.940209]
[1771982482416,6.04706355,1922.8,1920.3,1.30187991]
[1771982482581,5.44766175,1922.1,1920.7,5.44766175]
[1771982482787,5.44766175,1922.2,1920.7,5.44766175]
[1771982482976,5.44766175,1921.7,1920.4,5.44766175]
[1771982483172,6.04706355,1922.3,1920.8,5.44766175]
[1771982483378,5.44766175,1922.2,1920.6,0.08192]
[1771982483619,11.47107902,1922.4,1920.5,6.48803097]
[1771982483780,1.30052541,1922.3,1920.9,5.42401547]
[1771982484216,7.34725077,1922.9,1921.1,5.42401547]
[1771982484421,7.34725077,1922.9,1921.0,6.48803097]
[1771982484422,5.42401547,1922.7,1921.0,6.48803097]
[1771982484717,5.42401547,1922.7,1920.8,5.42401547]
[1771982484718,11.47107902,1922.7,1920.8,5.42401547]
[1771982484919,6.04706355,1923.2,1921.1,11.91204644]
[1771982485118,6.04706355,1923.2,1920.9,17.419086]
[1771982485119,12.77106342,1923.1,1921.3,4.5104]
[1771982485318,7.34704795,1923.1,1921.3,21.015946]
[1771982485489,7.34704795,1923.1,1921.3,3.150607]
[1771982485686,7.34707106,1923.1,1921.3,7.22429265]
[1771982485888,1.299822,1923.4,1921.8,5.42401547]
[1771982486084,6.72383747,1923.4,1921.7,30.0]
[1771982486289,6.72383747,1923.4,1920.7,5.42401547]
[1771982486290,5.42401547,1922.5,1920.7,5.42401547]
[1771982486485,5.42401547,1922.8,1921.1,13.027227]
[1771982486720,5.94122338,1923.0,1921.1,2.445]
[1771982487032,5.42401547,1922.5,1920.7,11.650097]
[1771982487200,5.94122338,1922.5,1920.7,2.445]
[1771982487389,11.36523885,1923.2,1921.3,2.175275]
[1771982487588,5.42401547,1922.9,1921.2,5.92309034]
[1771982487949,5.19912654,1923.6,1921.5,5.92309034]
[1771982487950,0.002,1923.0,1921.5,5.92309034]
[1771982488225,0.002,1923.0,1921.4,5.42401547]
[1771982488431,5.94122338,1922.8,1920.9,1.30147326]
[1771982488598,5.94122338,1922.8,1920.8,0.001]
[1771982488801,5.42401547,1922.4,1920.8,0.001]
[1771982489038,11.36523885,1922.7,1920.8,1.30252481]
[1771982489244,5.94122338,1922.3,1920.8,0.001]
[1771982489405,5.94122338,1922.3,1920.8,1.30252443]
[1771982489609,16.35596641,1923.0,1921.0,5.92309034]
[1771982489610,0.002,1923.0,1921.0,5.92309034]
[1771982489838,0.002,1923.0,1922.2,1.30059307]
[1771982490035,0.002,1923.0,1921.7,1.30088452]
[1771982490349,0.002,1923.0,1922.0,5.42401547]
[1771982490706,5.32427634,1923.8,1922.3,5.92309034]
[1771982490908,1.55927917,1924.3,1922.1,0.08192]
[1771982490909,5.20177044,1925.4,1923.7,5.9877053]
[1771982491109,11.36523885,1924.8,1922.7,11.34710581]
[1771982491413,11.36523885,1924.1,1922.1,5.92309034]
[1771982491632,11.36523885,1924.1,1921.6,8.33177764]
[1771982491633,5.94122338,1923.5,1921.1,5.92309034]
[1771982491839,1.29978163,1923.4,1921.8,3.283942]
[1771982492062,5.42401547,1923.3,1921.5,5.42401547]
[1771982492238,5.42401547,1923.3,1921.4,1.30108482]
[1771982492239,5.42401547,1923.0,1921.4,1.30108482]
[1771982492545,5.42401547,1922.7,1920.9,12.64853727]